bitfinex/quotes_ETHUSD_20240811
["timestamp","ask_amount","ask_price","bid_price","bid_amount"]
[1723360023075,0.07549872,2665.4,2665.3,2.62634]
[1723360023238,0.07549872,2665.6,2665.3,2.62634]
[1723360024069,2.391,2666.0,2665.7,2.62591]
[1723360024070,2.3459,2666.0,2665.7,2.62591]
[1723360024255,0.07549872,2665.9,2665.7,2.62591]
[1723360025869,0.07549872,2665.9,2665.6,2.62595]
[1723360025870,0.07549872,2665.9,2665.4,3.55]
[1723360026045,0.07549872,2665.9,2665.6,2.62598]
[1723360027272,0.07549872,2665.9,2665.8,2.62585]
[1723360030367,2.391,2666.4,2665.8,2.62585]
[1723360030368,2.3459,2666.4,2666.1,2.62552]
[1723360030675,0.07549872,2666.3,2666.1,2.62552]
[1723360031468,2.3459,2666.4,2666.0,2.62557]
[1723360031669,2.3459,2666.6,2666.2,2.62538]
[1723360031864,0.07549872,2666.5,2666.2,2.62538]
[1723360032395,7.3,2666.8,2666.6,2.62497]
[1723360033063,7.3,2667.2,2666.6,2.62497]
[1723360033289,7.3,2667.2,2666.9,2.62468]
[1723360036502,7.3,2667.2,2666.7,2.6249]
[1723360036788,7.3,2667.2,2666.8,3.0]
[1723360037298,7.3,2667.2,2666.8,5.62486]
[1723360038671,2.3459,2667.3,2666.8,5.62486]
[1723360039079,0.07549872,2667.2,2666.8,5.62486]
[1723360039805,2.3459,2667.3,2666.8,5.62486]
[1723360039975,4.791918,2667.3,2666.8,5.62486]
[1723360040177,0.07549872,2667.2,2666.8,5.62486]
[1723360041102,19.49,2667.5,2667.0,2.62463]
[1723360041306,22.11419,2667.5,2666.8,8.24965]
[1723360041505,22.11419,2667.5,2667.2,2.62447]
[1723360041506,19.49,2667.5,2667.2,2.62447]
[1723360041666,2.2861,2667.6,2667.2,2.62447]
[1723360041876,2.2861,2667.6,2666.9,3.670765]
[1723360041877,0.07549872,2667.5,2667.0,2.62458]
[1723360042482,2.2861,2667.6,2667.0,2.62458]
[1723360043104,0.07549872,2667.5,2667.0,2.62458]
[1723360043330,3.016208,2667.6,2667.0,2.62458]
[1723360043684,5.640308,2667.6,2667.0,2.62458]
[1723360044015,0.07549872,2667.5,2667.0,2.62458]
[1723360046088,3.016208,2667.6,2667.1,2.62457]
[1723360046289,2.2861,2667.6,2667.1,2.62457]
[1723360046802,2.2861,2667.8,2667.1,4.92037]
[1723360046992,4.91006,2667.8,2667.1,4.92037]
[1723360047197,2.2861,2667.8,2667.1,4.9203]
[1723360047914,2.2861,2667.8,2667.3,2.62436]
[1723360048146,6.370112,2667.8,2667.1,4.9203]
[1723360048325,3.746192,2667.8,2667.1,4.9203]
[1723360048687,2.62399,2667.7,2667.1,4.9203]
[1723360050019,2.62399,2667.7,2667.1,7.5448]
[1723360050218,2.62399,2667.7,2667.2,3.0]
[1723360051214,0.07549872,2667.6,2667.2,3.0]
[1723360052820,2.69963872,2667.6,2667.2,3.0]
[1723360053017,2.62424,2667.5,2667.1,3.0]
[1723360053219,0.07549872,2667.4,2667.0,3.0]
[1723360053455,2.36159872,2667.4,2667.0,3.0]
[1723360053960,0.995,2667.1,2667.0,3.0]
[1723360054413,0.995,2667.1,2667.0,5.62467]
[1723360055050,0.995,2667.1,2667.0,3.0]
[1723360055357,0.995,2667.1,2666.8,3.0]
[1723360055520,0.995,2666.9,2666.8,3.0]
[1723360055819,0.07549872,2667.0,2666.8,3.0]
[1723360056018,7.3,2667.5,2667.2,2.62439]
[1723360056223,0.995,2667.4,2667.2,5.24879]
[1723360056431,0.995,2667.4,2667.2,2.62439]
[1723360057422,0.995,2667.4,2667.0,4.9204]
[1723360057629,0.995,2667.2,2667.1,3.0]
[1723360058142,0.995,2667.2,2666.9,3.0]
[1723360058346,0.995,2667.0,2666.9,3.0]
[1723360059771,0.07549872,2667.1,2666.9,3.0]
[1723360059975,0.07549872,2667.2,2666.9,3.0]
[1723360060747,0.07549872,2667.2,2667.0,2.62466]
[1723360061056,0.07549872,2667.4,2667.0,3.449558]
[1723360061256,0.07549872,2667.4,2667.0,2.6246]
[1723360062883,0.07549872,2667.4,2667.0,5.24921]
[1723360063468,0.07549872,2667.4,2667.0,2.6246]
[1723360063771,0.07549872,2667.4,2667.0,5.2492]
[1723360063971,0.07549872,2667.4,2667.0,2.6246]
[1723360064384,0.07549872,2667.4,2667.0,5.2492]
[1723360064982,0.07549872,2667.4,2667.0,2.6246]
[1723360065942,7.3,2667.5,2667.1,2.3347]
[1723360066555,7.3,2667.5,2667.1,5.3347]
[1723360067149,7.3,2667.5,2667.2,2.62446]
[1723360070365,7.3,2667.5,2667.3,2.62431]
[1723360071570,2.2861,2667.7,2667.3,2.62431]
[1723360071763,2.2861,2667.7,2667.2,2.62439]
[1723360071764,0.07549872,2667.6,2667.2,2.62439]
[1723360075049,2.2861,2667.7,2667.3,2.62436]
[1723360075249,0.07549872,2667.6,2667.3,2.62436]
[1723360079750,0.995,2667.4,2667.3,2.62436]
[1723360080902,0.995,2667.4,2667.2,2.62439]
[1723360081887,0.07549872,2667.3,2667.1,3.0]
[1723360082584,0.995,2667.2,2667.1,3.0]
[1723360083964,0.995,2667.2,2667.1,5.62457]
[1723360084250,0.995,2667.2,2667.1,7.89337]
[1723360084487,0.995,2667.4,2667.2,2.62446]
[1723360084781,0.995,2667.4,2667.3,2.62437]
[1723360086868,0.995,2667.4,2667.2,2.62446]
[1723360087281,0.995,2667.4,2667.2,2.6244]
[1723360087599,0.995,2667.5,2667.3,2.62431]
[1723360088114,0.995,2667.5,2667.2,2.6244]
[1723360088327,0.995,2667.3,2667.2,2.6244]
[1723360093270,0.995,2667.3,2667.1,3.0]
[1723360093498,0.995,2667.3,2667.1,5.62457]
[1723360094804,0.995,2667.3,2667.2,2.62447]
[1723360095108,0.995,2667.3,2667.2,5.62447]
[1723360096394,0.995,2667.3,2667.2,8.24894]
[1723360096594,0.995,2667.5,2667.3,2.62435]
[1723360100780,0.995,2667.5,2667.2,5.62447]
[1723360101519,0.995,2667.3,2667.2,5.62447]
[1723360102684,0.995,2667.3,2667.2,3.0]
[1723360103713,0.995,2667.3,2667.2,5.62447]
[1723360104028,0.07549872,2667.8,2667.5,2.62408]
[1723360104338,8.295,2668.2,2667.8,2.6238]
[1723360104550,0.995,2668.2,2667.9,2.62372]
[1723360104808,1.32834,2668.2,2667.9,2.62372]
[1723360105212,0.995,2668.0,2667.9,2.62372]
[1723360105390,0.995,2668.2,2668.0,2.62361]
[1723360106510,0.995,2668.2,2668.1,2.62358]
[1723360108502,0.995,2668.2,2667.9,5.05282]
[1723360108686,0.995,2668.2,2667.9,7.67654]
[1723360109418,0.995,2668.2,2668.0,2.62367]
[1723360109618,0.995,2668.2,2667.9,5.05282]
[1723360109934,9.9232,2668.5,2667.9,2.62372]
[1723360109935,0.995,2668.0,2667.9,2.62372]
[1723360110221,0.995,2668.0,2667.9,5.62372]
[1723360111424,0.945,2668.0,2667.9,5.62372]
[1723360112691,0.995,2668.2,2668.0,2.62365]
[1723360113391,0.995,2668.2,2668.1,2.62358]
[1723360113588,7.3,2668.5,2668.1,5.9791]
[1723360113887,0.995,2668.8,2668.4,2.4291]
[1723360114132,0.995,2668.8,2668.4,2.67201]
[1723360114331,0.995,2668.8,2668.5,2.6231]
[1723360115334,0.995,2668.8,2668.5,5.24622]
[1723360115494,0.07549872,2669.0,2668.6,2.62308]
[1723360115830,0.995,2668.8,2668.5,2.6231]
[1723360116916,0.995,2668.8,2668.2,3.0]
[1723360116917,0.995,2668.6,2668.2,3.0]
[1723360117118,0.995,2668.4,2668.3,0.55]
[1723360117324,0.995,2668.4,2668.2,3.0]
[1723360117913,0.995,2668.4,2668.2,5.62347]
[1723360118539,0.995,2668.4,2668.2,3.0]
[1723360119236,0.995,2668.4,2668.0,3.0]
[1723360119562,0.995,2668.2,2668.0,5.62365]
[1723360120336,0.07549872,2668.7,2668.2,2.6234]
[1723360120542,0.995,2668.4,2668.2,5.24681]
[1723360121727,0.995,2668.4,2668.3,4.98139]
[1723360123142,0.995,2668.6,2668.4,2.62327]
[1723360123721,0.995,2668.6,2668.3,2.358]
[1723360124138,0.995,2668.6,2668.2,5.24686]
[1723360124332,0.995,2668.4,2668.2,5.24683]
[1723360124543,0.995,2668.4,2668.2,2.62341]
[1723360129224,0.995,2668.4,2668.2,5.24683]
[1723360129546,0.995,2668.4,2668.2,2.62341]
[1723360129744,0.995,2668.4,2668.0,8.24726]
[1723360129948,0.995,2668.2,2668.1,0.55]
[1723360130245,0.995,2668.2,2668.0,5.62362]
[1723360130971,0.995,2668.2,2668.0,8.24724]
[1723360131175,0.995,2668.2,2668.0,5.62362]
[1723360131473,0.995,2668.2,2668.0,8.24723]
[1723360131676,0.995,2668.2,2668.0,5.62361]
[1723360132662,1.07049872,2668.4,2668.0,5.62361]
[1723360134028,1.07049872,2668.4,2668.0,8.24723]
[1723360134755,1.07049872,2668.4,2668.0,5.62361]
[1723360135762,1.07049872,2668.4,2668.0,8.24723]
[1723360135939,0.995,2668.4,2668.0,5.62361]
[1723360136640,0.995,2668.4,2668.1,2.62358]
[1723360136845,0.995,2668.4,2668.2,5.62341]
[1723360137045,0.995,2668.4,2668.2,2.62341]
[1723360137227,7.3,2668.8,2668.4,2.62327]
[1723360137429,0.995,2668.5,2668.4,2.62327]
[1723360139137,0.995,2668.5,2668.3,2.358]
[1723360139340,7.3,2669.1,2668.7,2.62292]
[1723360139547,8.295,2669.1,2668.9,2.6228]
[1723360139793,8.295,2669.1,2668.7,2.62292]
[1723360140084,0.995,2668.9,2668.7,2.62292]
[1723360140941,0.995,2668.9,2668.5,4.98111]
[1723360141139,0.995,2668.9,2668.6,6.17301]
[1723360142346,0.995,2668.9,2668.7,2.62299]
[1723360143790,0.995,2668.9,2668.6,5.62309]
[1723360144145,0.995,2668.9,2668.7,2.62297]
[1723360144646,0.995,2668.9,2668.8,2.6229]
[1723360145370,0.995,2668.9,2668.6,6.5009321]
[1723360145573,0.995,2668.9,2668.6,3.8779221]
[1723360145754,0.995,2668.7,2668.1,2.62356]
[1723360145966,0.995,2668.5,2668.0,2.4678]
[1723360146157,0.995,2668.5,2668.3,2.62333]
[1723360146358,0.995,2668.5,2668.4,3.0]
[1723360149073,0.995,2668.5,2668.2,3.0]
[1723360149392,0.995,2668.5,2668.2,5.62347]
[1723360149694,0.995,2668.5,2668.3,2.62339]
[1723360149895,0.995,2668.5,2668.4,3.0]
[1723360150487,0.995,2668.5,2668.2,5.62341]
[1723360150670,0.995,2668.5,2668.3,2.62336]
[1723360150862,0.995,2668.5,2668.4,3.0]
[1723360151376,0.995,2668.5,2668.3,3.0]
[1723360151575,1.07049872,2668.4,2668.3,3.0]
[1723360151882,1.07049872,2668.4,2668.1,5.24704]
[1723360152075,1.07049872,2668.4,2668.2,3.0]
[1723360152271,0.995,2668.4,2668.2,3.0]
[1723360152493,0.995,2668.4,2668.3,2.62339]
[1723360152694,0.995,2668.4,2668.3,5.62339]
[1723360154101,0.995,2668.4,2668.3,3.0]
[1723360154802,0.995,2668.4,2668.1,3.0]
[1723360156995,0.995,2668.4,2668.1,5.62352]
[1723360158097,0.995,2668.2,2668.1,5.62356]
[1723360160504,0.995,2668.4,2668.1,5.62356]
[1723360160919,0.07549872,2668.6,2668.1,3.0]
[1723360161218,0.07549872,2668.6,2668.2,2.62341]
[1723360161219,0.995,2668.6,2668.2,2.62341]
[1723360161512,0.995,2668.6,2668.4,2.62323]
[1723360162083,7.3,2668.8,2668.4,5.00012]
[1723360162321,2.3142,2669.0,2668.6,2.62309]
[1723360162524,0.995,2668.7,2668.6,2.62309]
[1723360163188,0.995,2668.8,2668.6,2.62309]
[1723360164520,0.995,2668.8,2668.4,8.00013]
[1723360164719,0.995,2668.6,2668.5,3.0]
[1723360167144,0.995,2668.6,2668.3,3.0]
[1723360167291,0.995,2668.4,2668.3,3.0]
[1723360170229,2.38969872,2668.9,2668.3,8.00029]
[1723360170395,0.995,2668.7,2668.3,8.00029]
[1723360170598,0.995,2668.7,2668.3,8.800319]
[1723360171628,0.995,2668.5,2668.3,3.0]
[1723360173103,1.07049872,2668.5,2668.3,3.0]
[1723360174099,0.995,2668.5,2668.3,3.0]
[1723360175534,7.3,2669.1,2668.8,2.62284]
[1723360175535,8.295,2669.1,2668.8,2.62284]
[1723360175828,8.295,2669.1,2668.8,4.99972]
[1723360176002,8.295,2669.1,2668.8,7.62253]
[1723360176197,7.3,2669.1,2669.0,2.6227]
[1723360176397,0.995,2669.1,2668.9,2.62279]
[1723360177304,0.995,2669.1,2669.0,2.62267]
[1723360177901,7.3,2669.6,2669.4,2.62229]
[1723360178105,0.995,2669.5,2669.2,2.62245]
[1723360178339,0.995,2669.5,2669.3,2.6224]
[1723360179414,0.995,2669.5,2669.1,2.62254]
[1723360179612,0.995,2669.3,2669.2,3.0]
[1723360179830,0.90499872,2669.5,2669.1,3.0]
[1723360180130,3.52722872,2669.5,2669.1,3.0]
[1723360180331,3.52722872,2669.5,2668.8,2.3769]
[1723360180332,2.62232,2669.4,2668.8,4.99979]
[1723360180561,0.07549872,2669.3,2668.9,3.0]
[1723360181502,3.45173,2669.5,2668.9,3.0]
[1723360181503,0.07549872,2669.4,2668.9,3.0]
[1723360181731,1.65185359,2669.4,2668.9,3.0]
[1723360181931,1.65185359,2669.4,2668.9,5.62278]
[1723360182121,0.8295,2669.5,2669.1,2.62258]
[1723360182122,0.07549872,2669.5,2669.1,2.62258]
[1723360188012,0.07549872,2669.5,2668.9,8.2455]
[1723360188213,0.07549872,2669.5,2669.0,3.17269]
[1723360188641,0.07549872,2669.5,2669.0,0.55]
[1723360188840,2.385,2669.8,2669.3,2.62235]
[1723360189046,9.92173,2670.0,2669.5,5.24434]
[1723360189047,7.3,2670.0,2669.5,5.24434]
[1723360189248,8.77051,2670.0,2669.5,4.98414]
[1723360189618,8.77051,2670.0,2669.5,4.98413]
[1723360189940,2.69734872,2669.9,2669.4,3.0]
[1723360190145,2.3985,2669.8,2669.4,3.0]
[1723360190342,0.07549872,2669.7,2669.4,3.0]
[1723360190644,0.07549872,2669.7,2669.2,2.362]
[1723360190645,0.07549872,2669.7,2669.2,7.98449]
[1723360191246,7.3,2670.0,2669.2,5.362]
[1723360191428,7.3,2670.0,2669.3,0.58908894]
[1723360191429,0.07549872,2669.9,2669.3,0.58908894]
[1723360191615,0.07549872,2669.9,2669.4,2.62225]
[1723360191844,0.07549872,2669.9,2669.4,5.31929913]
[1723360192428,0.07549872,2669.9,2669.5,2.6222]
[1723360193012,0.07549872,2669.9,2669.6,2.62207]
[1723360193343,2.62152,2670.2,2669.6,4.98405]
[1723360193566,7.3,2670.3,2669.7,3.55]
[1723360193713,7.3,2670.3,2669.9,2.62172]
[1723360193919,12.54237,2670.6,2670.0,3.0]
[1723360194249,9.92116,2670.6,2670.1,2.362]
[1723360194451,0.07549872,2670.5,2670.1,2.362]
[1723360195747,2.46049872,2670.5,2670.0,3.0]
[1723360195949,2.62145,2670.3,2669.9,3.0]
[1723360196244,0.07549872,2670.2,2669.7,5.62199]
[1723360196826,0.07549872,2670.2,2669.6,2.362]
[1723360196827,2.62162,2670.1,2669.6,2.362]
[1723360197034,2.62182,2669.9,2669.3,4.98431]
[1723360197251,0.07549872,2670.0,2669.3,2.362]
[1723360197420,0.07549872,2670.0,2669.5,2.62214]
[1723360198049,0.07549872,2670.0,2669.6,4.98409]
[1723360198262,0.07549872,2670.0,2669.7,2.62201]
[1723360198644,0.07549872,2670.0,2669.6,5.362]
[1723360199424,0.07549872,2670.0,2669.6,7.98408]
[1723360200067,7.3,2670.1,2669.7,2.362]
[1723360200357,7.3,2670.1,2669.9,2.62175]
[1723360200661,7.3,2670.1,2669.8,0.55]
[1723360200662,7.3,2670.5,2670.0,2.62166]
[1723360200831,8.77046,2670.5,2670.0,2.62166]
[1723360201033,0.07549872,2670.4,2670.0,2.62166]
[1723360201227,8.77046,2670.5,2670.0,2.62166]
[1723360201430,7.3,2670.5,2670.2,2.62152]
[1723360201637,7.3,2670.5,2670.1,4.95485]
[1723360202342,19.49,2670.8,2670.1,2.3333]
[1723360202549,2.385,2671.0,2670.5,2.62118]
[1723360202745,2.46049872,2671.0,2670.3,2.62138]
[1723360202931,2.46049872,2671.0,2670.4,6.17131]
[1723360202932,5.08131872,2671.0,2670.4,6.17131]
[1723360203134,5.08131872,2671.0,2670.5,2.3333]
[1723360203135,2.46049872,2671.0,2670.5,2.3333]
[1723360203464,2.62111,2670.7,2670.4,3.0]
[1723360203673,0.07549872,2670.6,2670.2,3.0]
[1723360203966,2.6214,2670.4,2669.7,2.62192]
[1723360204134,0.07549872,2670.3,2669.5,2.3333]
[1723360204331,2.4416,2670.2,2669.5,4.9555]
[1723360204553,0.07549872,2670.1,2669.5,4.9555]
[1723360204945,2.69712872,2670.1,2669.5,4.9555]
[1723360205145,0.07549872,2670.1,2669.7,2.622]
[1723360205332,9.685,2670.4,2669.7,2.622]
[1723360205333,0.07549872,2670.2,2669.8,2.62185]
[1723360205545,7.3,2670.4,2669.9,2.62181]
[1723360205854,7.3,2670.4,2669.9,2.62175]
[1723360206055,7.3,2670.4,2670.0,0.62489664]
[1723360206266,7.3,2670.4,2670.3,4.95472]
[1723360206466,2.62075,2671.0,2670.4,2.62133]
[1723360206467,9.92075,2671.0,2670.4,2.62133]
[1723360206665,1.08230172,2670.9,2670.4,2.62133]
[1723360207433,1.08230172,2670.9,2670.3,4.95472]
[1723360207686,3.70322172,2670.9,2670.3,2.62142]
[1723360207867,2.385,2670.5,2670.0,5.3333]
[1723360208056,2.385,2670.5,2670.0,3.0]
[1723360208057,0.07549872,2670.4,2670.0,3.0]
[1723360208257,2.62153,2670.2,2669.6,2.3333]
[1723360208447,0.07549872,2670.1,2669.6,2.3333]
[1723360208647,0.07549872,2670.1,2669.7,2.622]
[1723360208852,0.07549872,2670.1,2669.6,2.3333]
[1723360209041,0.42043258,2670.1,2669.3,4.95564]
[1723360209368,2.62172,2670.0,2669.4,2.62224]
[1723360209568,0.07549872,2669.9,2669.5,2.62219]
[1723360210192,3.37380987,2670.3,2669.5,2.62219]
[1723360210193,0.07549872,2670.2,2669.5,2.62219]
[1723360210358,2.62169,2670.1,2669.5,2.62219]
[1723360210546,0.07549872,2670.0,2669.6,3.0]
[1723360210747,0.07549872,2670.0,2669.5,3.0]
[1723360211061,3.37379987,2670.3,2669.5,3.417687]
[1723360211367,2.69702872,2670.2,2669.6,3.55]
[1723360211570,2.62162,2670.1,2669.6,3.55]
[1723360211901,0.07549872,2670.0,2669.6,3.0]
[1723360212046,2.62082,2671.0,2670.3,2.62134]
[1723360212358,0.07549872,2670.9,2670.3,2.69623042]
[1723360212674,0.26963187,2670.8,2670.3,2.69623042]
[1723360212968,0.26963187,2670.8,2670.3,5.31758042]
[1723360213180,0.26963187,2670.8,2670.3,2.69623042]
[1723360213385,0.07549872,2670.7,2670.2,4.95482]
[1723360213553,2.69654872,2670.7,2670.3,3.0]
[1723360213755,2.99316678,2670.7,2670.2,3.0]
[1723360214070,2.62129,2670.5,2669.9,4.9551]
[1723360214283,2.69678872,2670.5,2669.9,4.9551]
[1723360214466,2.62133,2670.4,2670.0,3.0]
[1723360214877,2.62133,2670.4,2669.9,2.3333]
[1723360214878,3.7408974,2670.5,2669.9,2.3333]
[1723360215043,5.30268806,2670.7,2670.0,0.07490363]
[1723360215394,5.37818678,2670.7,2670.1,2.62154]
[1723360215748,5.30268806,2670.7,2670.1,2.62154]
[1723360217043,2.62114,2670.6,2670.1,2.62154]
[1723360217333,2.62114,2670.6,2669.9,4.95507]
[1723360217334,2.62128,2670.5,2669.9,4.95507]
[1723360217632,2.62128,2670.5,2670.1,2.62161]
[1723360217633,0.07549872,2670.5,2670.1,2.62161]
[1723360217935,2.62067,2671.1,2670.0,3.0]
[1723360217936,0.07549872,2670.8,2670.7,5.24206]
[1723360218133,7.315,2671.3,2670.7,5.24206]
[1723360218134,0.07549872,2671.2,2670.7,2.3333]
[1723360218337,0.7315,2671.2,2670.7,2.3333]
[1723360218542,0.7315,2671.2,2670.7,5.02916892]
[1723360218727,0.7315,2671.2,2670.7,5.02913892]
[1723360218926,0.7315,2671.2,2670.8,2.62091]
[1723360219104,0.7315,2671.2,2670.9,2.62083]
[1723360219309,7.315,2671.3,2670.9,2.62083]
[1723360219510,7.315,2671.3,2670.7,4.95429]
[1723360219712,0.07549872,2671.2,2670.8,0.55]
[1723360219935,1.07659359,2671.2,2670.7,4.95429]
[1723360220235,1.07659359,2671.2,2670.7,2.62099]
[1723360220456,1.00109487,2671.2,2670.8,2.62093]
[1723360220649,9.93545,2671.3,2670.8,2.62093]
[1723360221639,0.07549872,2671.2,2670.8,2.62093]
[1723360221812,2.69603872,2671.2,2670.6,2.62106]
[1723360222150,0.07549872,2671.2,2670.7,0.55]
[1723360223318,0.07549872,2671.2,2670.7,3.17103]
[1723360223504,9.93545,2671.3,2670.7,3.17103]
[1723360223911,7.315,2671.3,2670.7,3.17096]
[1723360224110,7.315,2671.3,2670.9,2.62082]
[1723360224717,7.315,2671.3,2670.8,4.93923]
[1723360224906,7.315,2671.3,2670.9,0.55]
[1723360225107,0.07549872,2671.2,2670.7,2.938056]
[1723360226744,0.07549872,2671.2,2670.7,0.317096]
[1723360226945,0.07549872,2671.2,2670.6,2.62112]
[1723360227130,2.69604872,2671.2,2670.7,0.55]
[1723360227312,2.62066,2671.1,2670.6,3.55]
[1723360228425,0.07549872,2671.0,2670.6,3.55]
[1723360228624,0.07549872,2671.0,2670.6,3.0]
[1723360229040,2.69615872,2671.1,2670.6,3.0]
[1723360229754,2.6211,2670.7,2670.1,2.62158]
[1723360229944,2.69659872,2670.7,2670.1,2.62158]
[1723360230326,2.69659872,2670.7,2669.9,4.94005]
[1723360230327,2.62114,2670.6,2669.9,4.94005]
[1723360230523,0.07549872,2670.5,2669.9,4.94005]
[1723360230815,0.07549872,2670.5,2670.0,0.494005]
[1723360231014,2.69663872,2670.6,2670.0,0.56890319]
[1723360231342,2.69663872,2670.6,2670.0,6.19060319]
[1723360232145,2.62133,2670.4,2670.0,3.0]
[1723360232645,2.3279,2670.5,2670.0,3.0]
[1723360233146,2.62133,2670.4,2670.0,3.0]
[1723360236844,2.62133,2670.4,2669.9,5.3183]
[1723360238091,2.62133,2670.4,2669.4,2.3183]
[1723360238092,2.62178,2670.0,2669.4,2.3183]
[1723360238268,4.94968,2670.0,2669.4,2.3183]
[1723360238585,4.94968,2670.0,2669.4,7.56283]
[1723360238769,4.94968,2670.0,2669.4,4.94054]
[1723360239814,4.94968,2670.0,2669.5,3.0]
[1723360239986,7.57148,2670.0,2669.5,3.0]
[1723360240304,2.62182,2669.9,2669.5,3.0]
[1723360240581,2.69731872,2669.9,2669.5,3.0]
[1723360240787,2.62182,2669.9,2669.3,3.0]
[1723360241084,2.62182,2669.9,2669.3,5.62239]
[1723360242441,2.62182,2669.9,2669.3,6.678702]
[1723360244910,2.69731872,2669.9,2669.3,5.62239]
[1723360245081,2.62194,2669.8,2669.3,3.0]
[1723360245524,5.24372,2669.9,2669.3,3.0]
[1723360245890,2.62182,2669.9,2669.3,5.6224]
[1723360246611,2.62182,2669.9,2669.3,5.62234]
[1723360246928,3.617459,2669.9,2669.3,5.62234]
[1723360247523,3.617459,2669.9,2669.3,5.62233]
[1723360248773,3.617459,2669.9,2669.3,8.24465]
[1723360248979,0.995639,2669.9,2669.3,5.62232]
[1723360249409,3.617459,2669.9,2669.3,8.24466]
[1723360249896,3.617459,2669.9,2669.3,5.62232]
[1723360250097,3.617459,2669.9,2669.3,8.24467]
[1723360250298,3.617459,2669.9,2669.4,2.62228]
[1723360250480,0.995639,2669.9,2669.4,2.62228]
[1723360250696,0.995639,2669.9,2669.5,3.0]
[1723360251017,3.617479,2669.9,2669.5,3.0]
[1723360251194,3.617479,2669.9,2669.2,2.3183]
[1723360251195,0.8330379,2669.8,2669.2,5.3183]
[1723360251625,2.62184,2669.9,2669.3,2.62232]
[1723360251808,2.62184,2669.9,2669.4,3.0]
[1723360252529,7.33464,2670.0,2669.5,2.62218]
[1723360252825,7.33464,2670.0,2669.6,3.0]
[1723360252996,5.00674,2670.0,2669.6,3.0]
[1723360253194,2.385,2670.0,2669.7,2.62192]
[1723360253395,7.3,2670.2,2669.7,5.626412]
[1723360253597,7.3,2670.2,2669.8,2.62188]
[1723360255898,2.385,2670.3,2669.8,2.62188]
[1723360256109,22.11126,2670.5,2669.9,2.62173]
[1723360256492,24.49626,2670.5,2670.0,2.62169]
[1723360256825,5.00626,2670.5,2670.0,2.62169]
[1723360257702,5.00626,2670.5,2669.8,5.24372]
[1723360258033,5.70204712,2670.5,2669.8,2.62184]
[1723360258198,5.70204712,2670.5,2669.8,5.24369]
[1723360258750,5.70204712,2670.5,2669.8,2.62184]
[1723360259042,5.70204712,2670.5,2669.8,2.62183]
[1723360259199,5.70204712,2670.5,2669.9,2.62181]
[1723360259406,0.79835471,2670.4,2669.8,2.62183]
[1723360259618,3.41974471,2670.4,2669.8,2.62183]
[1723360260341,0.79835471,2670.4,2669.8,2.62183]
[1723360260532,0.07549872,2670.3,2669.8,2.62183]
[1723360260733,0.07549872,2670.3,2669.8,5.24367]
[1723360260933,0.07549872,2670.3,2669.8,2.62183]
[1723360261426,2.69693872,2670.3,2669.7,2.51720668]
[1723360261634,5.00628,2670.5,2669.8,2.62189]
[1723360261635,0.07549872,2670.4,2669.8,2.62189]
[1723360261834,2.69682872,2670.4,2669.8,2.62189]
[1723360262033,2.69682872,2670.4,2669.8,5.24374]
[1723360262388,2.69682872,2670.4,2669.8,2.62185]
[1723360263254,2.62133,2670.4,2669.8,2.62185]
[1723360264142,5.24272,2670.4,2669.8,2.62185]
[1723360264352,2.69692872,2670.3,2669.8,2.62185]
[1723360265210,0.07549872,2670.3,2669.8,2.62185]
[1723360266514,2.69693872,2670.3,2669.8,2.62185]
[1723360266714,0.07549872,2670.3,2669.8,2.62185]
[1723360267047,2.69694872,2670.3,2669.7,2.51720667]
[1723360267235,2.62154,2670.2,2669.7,2.51720667]
[1723360267850,7.32914,2670.2,2669.6,5.62203]
[1723360268057,7.32914,2670.2,2669.7,0.55]
[1723360268630,7.32914,2670.2,2669.7,3.17201]
[1723360268853,2.385,2670.2,2670.0,2.62165]
[1723360269209,9.685,2670.5,2670.0,2.62165]
[1723360269421,0.07549872,2670.4,2670.0,2.62165]
[1723360269624,9.685,2670.5,2670.0,2.62165]
[1723360269830,12.30625,2670.5,2669.9,0.0534717]
[1723360270041,2.69688872,2670.4,2669.9,3.0]
[1723360270765,2.69688872,2670.4,2669.9,5.62181]
[1723360271061,4.94403,2670.3,2669.9,3.0]
[1723360271269,0.07549872,2670.2,2669.8,3.0]
[1723360271454,5.08204872,2670.2,2669.8,3.0]
[1723360271825,2.3226,2670.1,2669.7,3.0]
[1723360272026,2.69728872,2670.0,2669.5,3.0]
[1723360273826,2.69728872,2670.0,2669.4,2.2781]
[1723360274057,1.19340605,2670.0,2669.6,2.6221]
[1723360274358,1.19340605,2670.0,2669.4,10.52258]
[1723360274555,0.07549872,2670.0,2669.5,2.6222]
[1723360274863,0.07549872,2670.0,2669.5,5.6222]
[1723360275052,2.3226,2670.1,2669.6,2.6221]
[1723360275233,9.685,2670.2,2669.6,1.052244]
[1723360275555,9.685,2670.2,2669.8,2.62185]
[1723360276865,9.685,2670.2,2669.9,2.62179]
[1723360277050,9.685,2670.2,2669.9,4.89989]
[1723360277226,9.685,2670.2,2669.9,2.2781]
[1723360278490,9.685,2670.2,2669.8,2.62183]
[1723360279296,9.685,2670.2,2669.8,3.54079543]